Workbook

Sheet Камеры-Standard 80
F3: Акция с 15.02.2017 г.
A4: Сборно-разборные холодильные камеры из сендвич-панелей с соединением ШИП-ПАЗ из жесткого ПВХ
I7: толщина панели 80 мм
A8: ПРАЙС-ЛИСТ - КАМЕРЫ POLAIR Standard (80мм) ИЗ СТАНДАРТНЫХ ПАНЕЛЕЙ
A9: Базовые цены с учетом НДС
A10: Внешние габариты | C10: Высота 2 200 мм | F10: Высота 2 460 мм | I10: Высота 2 720 мм
A11: Длина | B11: Ширина | C11: объём, м3 | D11: Цена, Руб. | E11: Цена, Руб | F11: объём, м3 | G11: Цена, Руб. | H11: Цена, Руб | I11: объём, м3 | J11: Цена, Руб.
A12: 1360 | B12: 1360 | C12: 2.94 | D12: 0 | F12: 3.31 | G12: 50374.17 | H12: =#REF!*1.15 ->  | I12: 3.69 | J12: 53922
B13: 1660 | C13: 3.67 | D13: 52142.82353 | E13: =#REF!*1.15 ->  | F13: 4.14 | G13: 55608.525 | H13: =#REF!*1.15 ->  | I13: 4.61 | J13: 59516.66818
B14: 1960 | C14: 4.41 | D14: 0 | F14: 4.97 | G14: 60843.2717 | H14: =#REF!*1.15 ->  | I14: 5.53 | J14: 65111.86671
B15: 2260 | C15: 5.14 | D15: 61881.09078 | E15: =#REF!*1.15 ->  | F15: 5.8 | G15: 66078.18 | H15: =#REF!*1.15 ->  | I15: 6.45 | J15: 70716.08975
B16: 2560 | C16: 5.88 | D16: 66763.35272 | E16: =#REF!*1.15 ->  | F16: 6.62 | G16: 71320.73217 | H16: =#REF!*1.15 ->  | I16: 7.37 | J16: 76311.28827
B17: 2860 | C17: 6.61 | D17: 71627.56563 | E17: =#REF!*1.15 ->  | F17: 7.45 | G17: 76545.92563 | H17: =#REF!*1.15 ->  | I17: 8.29 | J17: 81906.4868
B18: 3160 | C18: 7.34 | D18: 76491.77855 | E18: =#REF!*1.15 ->  | F18: 8.28 | G18: 81780.1436 | H18: =#REF!*1.15 ->  | I18: 9.22 | J18: 87501.68532
B19: 3460 | C19: 8.08 | D19: 81374.04048 | E19: =#REF!*1.15 ->  | F19: 9.11 | G19: 87014.36158 | H19: =#REF!*1.15 ->  | I19: 10.14 | J19: 93105.90836
B20: 3760 | C20: 8.81 | D20: 86238.2534 | E20: =#REF!*1.15 ->  | F20: 9.94 | G20: 92248.57955 | H20: =#REF!*1.15 ->  | I20: 11.06 | J20: 98692.08237
B21: 4060 | C21: 9.55 | D21: 91120.51533 | E21: =#REF!*1.15 ->  | F21: 10.76 | G21: 97482.79753 | H21: =#REF!*1.15 ->  | I21: 11.98 | J21: 104287.2809
B22: 4360 | C22: 10.28 | D22: 95984.72825 | E22: =#REF!*1.15 ->  | F22: 11.59 | G22: 102717.0155 | H22: =#REF!*1.15 ->  | I22: 12.9 | J22: 109882.4794
B23: 4660 | C23: 11.02 | D23: 100866.9902 | E23: =#REF!*1.15 ->  | F23: 12.42 | G23: 108005.3806 | H23: =#REF!*1.15 ->  | I23: 13.82 | J23: 115477.6779
B24: 4960 | C24: 11.75 | D24: 105731.2031 | E24: =#REF!*1.15 ->  | F24: 13.25 | G24: 113185.4515 | H24: =#REF!*1.15 ->  | I24: 14.75 | J24: 121081.901
B25: 5260 | C25: 12.48 | D25: 110604.4405 | E25: =#REF!*1.15 ->  | F25: 14.08 | G25: 118419.6694 | H25: =#REF!*1.15 ->  | I25: 15.67 | J25: 126677.0995
B26: 5560 | C26: 13.22 | D26: 115477.6779 | E26: =#REF!*1.15 ->  | F26: 14.9 | G26: 123653.8874 | H26: =#REF!*1.15 ->  | I26: 16.59 | J26: 132272.298
A27: 1660 | B27: 1660 | C27: 4.59 | D27: 57468.10356 | E27: =#REF!*1.15 ->  | F27: 5.17 | G27: 61294.49739 | H27: =#REF!*1.15 ->  | I27: 5.76 | J27: 65572.11691
B28: 1960 | C28: 5.51 | D28: 62792.56667 | E28: =#REF!*1.15 ->  | F28: 6.21 | G28: 67034.08814 | H28: =#REF!*1.15 ->  | I28: 6.91 | J28: 71609.51661
B29: 2260 | C29: 6.43 | D29: 68098.98076 | E29: =#REF!*1.15 ->  | F29: 7.25 | G29: 72656.3602 | H29: =#REF!*1.15 ->  | I29: 8.06 | J29: 77646.91631
B30: 2560 | C30: 7.34 | D30: 73423.44387 | E30: =#REF!*1.15 ->  | F30: 8.28 | G30: 78341.80386 | H30: =#REF!*1.15 ->  | I30: 9.22 | J30: 80877.69223
B31: 2860 | C31: 8.26 | D31: 78738.88247 | E31: =#REF!*1.15 ->  | F31: 9.31 | G31: 84018.22301 | H31: =#REF!*1.15 ->  | I31: 10.37 | J31: 89739.76473
B32: 3160 | C32: 9.18 | D32: 84063.34558 | E32: =#REF!*1.15 ->  | F32: 10.35 | G32: 89694.64216 | H32: =#REF!*1.15 ->  | I32: 11.52 | J32: 95777.16443
B33: 3460 | C33: 10.1 | D33: 89378.78418 | E33: =#REF!*1.15 ->  | F33: 11.39 | G33: 95389.11034 | H33: =#REF!*1.15 ->  | I33: 12.67 | J33: 101832.6132
B34: 3760 | C34: 11.02 | D34: 94703.24729 | E34: =#REF!*1.15 ->  | F34: 12.42 | G34: 101065.5295 | H34: =#REF!*1.15 ->  | I34: 13.82 | J34: 107870.0129
B35: 4060 | C35: 11.93 | D35: 100027.7104 | E35: =#REF!*1.15 ->  | F35: 13.46 | G35: 106750.9731 | H35: =#REF!*1.15 ->  | I35: 14.98 | J35: 113925.4616
B36: 4360 | C36: 12.85 | D36: 105334.1245 | E36: =#REF!*1.15 ->  | F36: 14.49 | G36: 112427.3923 | H36: =#REF!*1.15 ->  | I36: 16.13 | J36: 119962.8613
B37: 4660 | C37: 13.77 | D37: 110658.5876 | E37: =#REF!*1.15 ->  | F37: 15.53 | G37: 118112.836 | H37: =#REF!*1.15 ->  | I37: 17.28 | J37: 126000.261
B38: 4960 | C38: 14.69 | D38: 115974.0262 | E38: =#REF!*1.15 ->  | F38: 16.56 | G38: 123789.2551 | H38: =#REF!*1.15 ->  | I38: 18.43 | J38: 129727.3852
B39: 5260 | C39: 15.61 | D39: 121298.4893 | E39: =#REF!*1.15 ->  | F39: 17.59 | G39: 129474.6988 | H39: =#REF!*1.15 ->  | I39: 19.58 | J39: 132055.7097
B40: 5560 | C40: 16.52 | D40: 126613.9279 | E40: =#REF!*1.15 ->  | F40: 18.63 | G40: 135151.1179 | H40: =#REF!*1.15 ->  | I40: 20.74 | J40: 134979.6522
A41: 1960 | B41: 1960 | C41: 6.61 | D41: 0 | F41: 7.45 | G41: 73107.58589 | H41: =#REF!*1.15 ->  | I41: 8.29 | J41: 74993.70926
B42: 2260 | C42: 7.71 | D42: 0 | F42: 8.69 | G42: 79235.23073 | H42: =#REF!*1.15 ->  | I42: 9.68 | J42: 84595.79189
B43: 2560 | C43: 8.81 | D43: 0 | F43: 9.94 | G43: 85371.90008 | H43: =#REF!*1.15 ->  | I43: 11.06 | J43: 91093.44179
B44: 2860 | C44: 9.91 | D44: 85248.9 | E44: =#REF!*1.15 ->  | F44: 11.18 | G44: 91490.5204 | H44: =#REF!*1.15 ->  | I44: 12.44 | J44: 97573.04267
B45: 3160 | C45: 11.02 | D45: 0 | F45: 12.42 | G45: 97654.26329 | H45: =#REF!*1.15 ->  | I45: 13.82 | J45: 104070.6926
B46: 3460 | C46: 12.12 | D46: 97392.55239 | E46: =#REF!*1.15 ->  | F46: 13.66 | G46: 103763.8591 | H46: =#REF!*1.15 ->  | I46: 15.21 | J46: 110559.318
B47: 3760 | C47: 13.22 | D47: 103159.2167 | E47: =#REF!*1.15 ->  | F47: 14.9 | G47: 109882.4794 | H47: =#REF!*1.15 ->  | I47: 16.59 | J47: 117056.9679
B48: 4060 | C48: 14.32 | D48: 108925.881 | E48: =#REF!*1.15 ->  | F48: 16.15 | G48: 116019.1488 | H48: =#REF!*1.15 ->  | I48: 17.97 | J48: 123545.5932
B49: 4360 | C49: 15.42 | D49: 114692.5452 | E49: =#REF!*1.15 ->  | F49: 17.39 | G49: 122137.7691 | H49: =#REF!*1.15 ->  | I49: 19.35 | J49: 126641.0015
B50: 4660 | C50: 16.52 | D50: 120459.2095 | E50: =#REF!*1.15 ->  | F50: 18.63 | G50: 126478.5602 | H50: =#REF!*1.15 ->  | I50: 20.74 | J50: 127967.605
B51: 4960 | C51: 17.63 | D51: 126225.8738 | E51: =#REF!*1.15 ->  | F51: 19.87 | G51: 128274.4384 | H51: =#REF!*1.15 ->  | I51: 22.12 | J51: 130792.2778
B52: 5260 | C52: 18.73 | D52: 131992.5381 | E52: =#REF!*1.15 ->  | F52: 21.11 | G52: 130665.9346 | H52: =#REF!*1.15 ->  | I52: 23.5 | J52: 134564.5245
B53: 5560 | C53: 19.83 | D53: 137759.2024 | E53: =#REF!*1.15 ->  | F53: 22.36 | G53: 132001.5626 | H53: =#REF!*1.15 ->  | I53: 24.88 | J53: 140403.3849
A54: 2260 | B54: 2260 | C54: 9 | D54: 80534.76071 | E54: =#REF!*1.15 ->  | F54: 10.14 | G54: 85805.07674 | H54: =#REF!*1.15 ->  | I54: 11.29 | J54: 87998.03358
B55: 2560 | C55: 10.28 | D55: 86752.65068 | E55: =#REF!*1.15 ->  | F55: 11.59 | G55: 92383.94726 | H55: =#REF!*1.15 ->  | I55: 12.9 | J55: 98466.46953
B56: 2860 | C56: 11.57 | D56: 92970.54065 | E56: =#REF!*1.15 ->  | F56: 13.04 | G56: 98962.81778 | H56: =#REF!*1.15 ->  | I56: 14.52 | J56: 105415.3451
B57: 3160 | C57: 12.85 | D57: 99188.43063 | E57: =#REF!*1.15 ->  | F57: 14.49 | G57: 105541.6883 | H57: =#REF!*1.15 ->  | I57: 16.13 | J57: 112355.1962
B58: 3460 | C58: 14.14 | D58: 105388.2716 | E58: =#REF!*1.15 ->  | F58: 15.94 | G58: 112129.5833 | H58: =#REF!*1.15 ->  | I58: 17.74 | J58: 119295.0473
B59: 3760 | C59: 15.42 | D59: 111606.1615 | E59: =#REF!*1.15 ->  | F59: 17.39 | G59: 117670.6348 | H59: =#REF!*1.15 ->  | I59: 19.35 | J59: 122074.5975
B60: 4060 | C60: 16.71 | D60: 117824.0515 | E60: =#REF!*1.15 ->  | F60: 18.84 | G60: 122164.8426 | H60: =#REF!*1.15 ->  | I60: 20.97 | J60: 122968.0244
B61: 4360 | C61: 17.99 | D61: 124041.9415 | E61: =#REF!*1.15 ->  | F61: 20.29 | G61: 124601.4613 | H61: =#REF!*1.15 ->  | I61: 22.58 | J61: 126099.5306
B62: 4660 | C62: 19.28 | D62: 126072.4571 | E62: =#REF!*1.15 ->  | F62: 21.73 | G62: 126316.119 | H62: =#REF!*1.15 ->  | I62: 24.19 | J62: 132344.4941
B63: 4960 | C63: 20.56 | D63: 128418.8307 | E63: =#REF!*1.15 ->  | F63: 23.18 | G63: 130512.5179 | H63: =#REF!*1.15 ->  | I63: 25.8 | J63: 138589.4577
B64: 5260 | C64: 21.85 | D64: 130070.3167 | E64: =#REF!*1.15 ->  | F64: 24.63 | G64: 136432.5989 | H64: =#REF!*1.15 ->  | I64: 27.42 | J64: 144834.4212
B65: 5560 | C65: 23.13 | D65: 134014.0292 | E65: =#REF!*1.15 ->  | F65: 26.08 | G65: 142343.6554 | H65: =#REF!*1.15 ->  | I65: 29.03 | J65: 151088.4092
A66: 2560 | B66: 2560 | C66: 11.75 | D66: 0 | F66: 13.25 | G66: 95262.76715 | H66: =#REF!*1.15 ->  | I66: 14.75 | J66: 100677.4754
B67: 2860 | C67: 13.22 | D67: 100072.833 | E67: =#REF!*1.15 ->  | F67: 14.9 | G67: 106435.1152 | H67: =#REF!*1.15 ->  | I67: 16.59 | J67: 113248.623
B68: 3160 | C68: 14.69 | D68: 106741.9486 | E68: =#REF!*1.15 ->  | F68: 16.56 | G68: 113465.2114 | H68: =#REF!*1.15 ->  | I68: 18.43 | J68: 117526.2426
B69: 3460 | C69: 16.16 | D69: 113402.0398 | E69: =#REF!*1.15 ->  | F69: 18.22 | G69: 120495.3076 | H69: =#REF!*1.15 ->  | I69: 20.28 | J69: 119376.2679
B70: 3760 | C70: 17.63 | D70: 120062.1309 | E70: =#REF!*1.15 ->  | F70: 19.87 | G70: 125440.7411 | H70: =#REF!*1.15 ->  | I70: 22.12 | J70: 121867.0337
B71: 4060 | C71: 19.09 | D71: 122056.5485 | E71: =#REF!*1.15 ->  | F71: 21.53 | G71: 127317.84 | H71: =#REF!*1.15 ->  | I71: 23.96 | J71: 128527.1248
B72: 4360 | C72: 20.56 | D72: 126054.4081 | E72: =#REF!*1.15 ->  | F72: 23.18 | G72: 129492.7478 | H72: =#REF!*1.15 ->  | I72: 25.8 | J72: 135169.1669
B73: 4660 | C73: 22.03 | D73: 127678.8205 | E73: =#REF!*1.15 ->  | F73: 24.84 | G73: 133734.2693 | H73: =#REF!*1.15 ->  | I73: 27.65 | J73: 141820.2336
B74: 4960 | C74: 23.5 | D74: 132037.6607 | E74: =#REF!*1.15 ->  | F74: 26.5 | G74: 140060.4534 | H74: =#REF!*1.15 ->  | I74: 29.49 | J74: 148462.2757
B75: 5260 | C75: 24.97 | D75: 138038.9623 | E75: =#REF!*1.15 ->  | F75: 28.15 | G75: 146386.6375 | H75: =#REF!*1.15 ->  | I75: 31.33 | J75: 155113.3423
B76: 5560 | C76: 26.44 | D76: 144040.264 | E76: =#REF!*1.15 ->  | F76: 29.81 | G76: 152703.7972 | H76: =#REF!*1.15 ->  | I76: 33.18 | J76: 161764.409
A77: 2860 | B77: 2860 | C77: 14.87 | D77: 115323.3588 | E77: =(B77/1000-0.16)*2.3*2.7 -> 16.767 | F77: 16.767 | G77: 122052.9387 | H77: 153211.16 | I77: =(B77/1000-0.16)*2.56*2.7 -> 18.6624 | J77: 129220.2075
B78: 3160 | C78: 16.52 | D78: 123288.3946 | E78: =(B78/1000-0.16)*2.3*2.7 -> 18.63 | F78: 18.63 | G78: 130379.8575 | H78: 147162.45 | I78: 20.736 | J78: 124118.6499
B79: 3460 | C79: 18.18 | D79: 131253.4304 | E79: 20.493 | F79: 20.493 | G79: 124836.0987 | H79: 156434 | I79: 22.8096 | J79: 131938.391
B80: 3760 | C80: 19.83 | D80: 139218.4663 | E80: 22.356 | F80: 22.356 | G80: 132330.9574 | H80: 165706.62 | I80: 24.8832 | J80: 139759.0346
B81: 4060 | C81: 21.48 | D81: 132464.5202 | E81: 24.219 | F81: 24.219 | G81: 139824.9136 | H81: 174978.17 | I81: 26.9568 | J81: 147578.7758
B82: 4360 | C82: 23.13 | D82: 139632.6914 | E82: 26.082 | F82: 26.082 | G82: 147318.8698 | H82: 184250.79 | I82: 29.0304 | J82: 155399.4194
B83: 4660 | C83: 24.79 | D83: 146801.7652 | E83: 27.945 | F83: 27.945 | G83: 154813.7285 | H83: 193522.34 | I83: 31.104 | J83: 163219.1606
B84: 4960 | C84: 26.44 | D84: 153969.9364 | E84: 29.808 | F84: 29.808 | G84: 162307.6847 | H84: 202794.96 | I84: 33.1776 | J84: 171039.8042
B85: 5260 | C85: 28.09 | D85: 161138.1077 | E85: 31.671 | F85: 31.671 | G85: 169801.6409 | H85: 212066.51 | I85: 35.2512 | J85: 178859.5454
B86: 5560 | C86: 29.74 | D86: 168306.279 | E86: 33.534 | F86: 33.534 | G86: 177296.4996 | H86: 221339.13 | I86: 37.3248 | J86: 186680.189
A87: 3160 | B87: 3160 | C87: 18.36 | D87: 131790.389 | E87: =(B87/1000-0.16)*2.3*3 -> 20.7 | F87: 20.7 | G87: 125337.8617 | H87: 157007.52 | I87: =(B87/1000-0.16)*2.56*3 -> 23.04 | J87: 132422.105
B88: 3460 | C88: 20.2 | D88: 126263.7768 | E88: =(B88/1000-0.16)*2.3*3 -> 22.77 | F88: 22.77 | G88: 133297.4828 | H88: 166853.66 | I88: 25.344 | J88: 140726.4625
B89: 3760 | C89: 22.03 | D89: 133915.662 | E89: 24.84 | F89: 24.84 | G89: 141276.0554 | H89: 176698.73 | I89: 27.648 | J89: 149029.9176
B90: 4060 | C90: 23.87 | D90: 141567.5472 | E90: 26.91 | F90: 26.91 | G90: 149253.7256 | H90: 186544.87 | I90: 29.952 | J90: 157334.2752
B91: 4360 | C91: 25.7 | D91: 149219.4324 | E91: 28.98 | F91: 28.98 | G91: 157231.3957 | H91: 196389.94 | I91: 32.256 | J91: 165637.7303
B92: 4660 | C92: 27.54 | D92: 156872.2201 | E92: 31.05 | F92: 31.05 | G92: 165209.9683 | H92: 206236.08 | I92: 34.56 | J92: 173942.0878
B93: 4960 | C93: 29.38 | D93: 164524.1053 | E93: 33.12 | F93: 33.12 | G93: 173187.6385 | H93: 216081.15 | I93: 36.864 | J93: 182245.5429
B94: 5260 | C94: 31.21 | D94: 172175.9905 | E94: 35.19 | F94: 35.19 | G94: 181165.3086 | H94: 225926.22 | I94: 39.168 | J94: 190548.998
B95: 5560 | C95: 33.05 | D95: 179827.8757 | E95: 37.26 | F95: 37.26 | G95: 189143.8812 | H95: 235772.36 | I95: 41.472 | J95: 198853.3556
A96: 3460 | B96: 3460 | C96: =(B96/1000-0.16)*2.04*3.3 -> 22.2156 | D96: 134399.3759 | E96: =(B96/1000-0.16)*2.3*3.3 -> 25.047 | F96: 25.047 | G96: 141759.7693 | H96: 177272.25 | I96: =(B96/1000-0.16)*2.56*3.3 -> 27.8784 | J96: 149513.6316
B97: 3760 | C97: =(B97/1000-0.16)*2.04*3.3 -> 24.2352 | D97: 142534.9751 | E97: =(B97/1000-0.16)*2.3*3.3 -> 27.324 | F97: 27.324 | G97: 150221.1534 | H97: 187691.91 | I97: 30.4128 | J97: 158301.703
B98: 4060 | C98: 26.2548 | D98: 150670.5742 | E98: 29.601 | F98: 29.601 | G98: 158682.5375 | H98: 198110.5 | I98: 32.9472 | J98: 167088.8721
B99: 4360 | C99: 28.2744 | D99: 158806.1734 | E99: 31.878 | F99: 31.878 | G99: 167144.8241 | H99: 208529.09 | I99: 35.4816 | J99: 175876.0411
B100: 4660 | C100: 30.294 | D100: 166942.675 | E100: 34.155 | F100: 34.155 | G100: 175606.2082 | H100: 218948.75 | I100: 38.016 | J100: 184664.1126
B101: 4960 | C101: 32.3136 | D101: 175078.2741 | E101: 36.432 | F101: 36.432 | G101: 184067.5923 | H101: 229367.34 | I101: 40.5504 | J101: 193451.2816
B102: 5260 | C102: 34.3332 | D102: 183213.8732 | E102: 38.709 | F102: 38.709 | G102: 192528.9763 | H102: 239787 | I102: 43.0848 | J102: 202239.3531
B103: 5560 | C103: 36.3528 | D103: 191349.4724 | E103: 40.986 | F103: 40.986 | G103: 200991.2629 | H103: 250205.59 | I103: 45.6192 | J103: 211026.5222
A104: 3760 | B104: 3760 | C104: =(B104/1000-0.16)*2.04*3.6 -> 26.4384 | D104: 151154.2882 | E104: =(B104/1000-0.16)*2.3*3.6 -> 29.808 | F104: 29.808 | G104: 159166.2515 | H104: 198684.02 | I104: =(B104/1000-0.16)*2.56*3.6 -> 33.1776 | J104: 167572.586
B105: 4060 | C105: =(B105/1000-0.16)*2.04*3.6 -> 28.6416 | D105: 159773.6012 | E105: =(B105/1000-0.16)*2.3*3.6 -> 32.292 | F105: 32.292 | G105: 168112.2519 | H105: 209676.13 | I105: 35.9424 | J105: 176843.469
B106: 4360 | C106: 30.8448 | D106: 168393.8168 | E106: 34.776 | F106: 34.776 | G106: 177057.35 | H106: 220669.31 | I106: 38.7072 | J106: 186115.2544
B107: 4660 | C107: 33.048 | D107: 177013.1299 | E107: 37.26 | F107: 37.26 | G107: 186002.448 | H107: 231661.42 | I107: 41.472 | J107: 195386.1374
B108: 4960 | C108: 35.2512 | D108: 185632.4429 | E108: 39.744 | F108: 39.744 | G108: 194947.546 | H108: 242654.6 | I108: 44.2368 | J108: 204657.9228
B109: 5260 | C109: 37.4544 | D109: 194251.756 | E109: 42.228 | F109: 42.228 | G109: 203893.5465 | H109: 253646.71 | I109: 47.0016 | J109: 213928.8058
B110: 5560 | C110: 39.6576 | D110: 202871.0691 | E110: 44.712 | F110: 44.712 | G110: 212838.6445 | H110: 264638.82 | I110: 49.7664 | J110: 223199.6888
A111: 4060 | B111: 4060 | C111: =(B111/1000-0.16)*2.04*3.9 -> 31.0284 | D111: 168877.5307 | E111: =(B111/1000-0.16)*2.3*3.9 -> 34.983 | F111: 34.983 | G111: 177541.0639 | H111: 221242.83 | I111: =(B111/1000-0.16)*2.56*3.9 -> 38.9376 | J111: 186598.9684
B112: 4360 | C112: 33.4152 | D112: 177980.5577 | E112: 37.674 | F112: 37.674 | G112: 186969.8759 | H112: 232808.46 | I112: 41.9328 | J112: 196353.5653
B113: 4660 | C113: 35.802 | D113: 187083.5847 | E113: 40.365 | F113: 40.365 | G113: 196398.6878 | H113: 244375.16 | I113: 44.928 | J113: 206109.0646
B114: 4960 | C114: 38.1888 | D114: 196637.8375 | E114: 43.056 | F114: 43.056 | G114: 205827.4998 | H114: 255940.79 | I114: 47.9232 | J114: 215863.6615
B115: 5260 | C115: 40.5756 | D115: 205289.6388 | E115: 45.747 | F115: 45.747 | G115: 215076.7239 | H115: 267506.42 | I115: 50.9184 | J115: 225618.2585
B116: 5560 | C116: 42.9624 | D116: 214392.6658 | E116: 48.438 | F116: 48.438 | G116: 224686.0262 | H116: 279073.12 | I116: 53.9136 | J116: 235373.7578
A117: 4360 | B117: 4360 | C117: =(B117/1000-0.16)*2.04*4.2 -> 35.9856 | D117: 187657.5438 | E117: =(B117/1000-0.16)*2.3*4.2 -> 40.572 | F117: 40.572 | G117: 196882.4018 | H117: 244948.68 | I117: =(B117/1000-0.16)*2.56*4.2 -> 45.1584 | J117: 206592.7786
B118: 4660 | C118: =(B118/1000-0.16)*2.04*4.2 -> 38.556 | D118: 197154.0396 | E118: =(B118/1000-0.16)*2.3*4.2 -> 43.47 | F118: 43.47 | G118: 206794.9277 | H118: 257087.83 | I118: =(B118/1000-0.16)*2.56*4.2 -> 48.384 | J118: 216831.0894
B119: 4960 | C119: =(B119/1000-0.16)*2.04*4.2 -> 41.1264 | D119: 206740.7806 | E119: =(B119/1000-0.16)*2.3*4.2 -> 46.368 | F119: 46.368 | G119: 216708.356 | H119: 269226.98 | I119: =(B119/1000-0.16)*2.56*4.2 -> 51.6096 | J119: 227069.4003
B120: 5260 | C120: =(B120/1000-0.16)*2.04*4.2 -> 43.6968 | D120: 216327.5216 | E120: =(B120/1000-0.16)*2.3*4.2 -> 49.266 | F120: 49.266 | G120: 226620.8819 | H120: 281367.2 | I120: =(B120/1000-0.16)*2.56*4.2 -> 54.8352 | J120: 237308.6136
B121: 5560 | C121: =(B121/1000-0.16)*2.04*4.2 -> 46.2672 | D121: 225914.2625 | E121: =(B121/1000-0.16)*2.3*4.2 -> 52.164 | F121: 52.164 | G121: 236533.4078 | H121: 293506.35 | I121: =(B121/1000-0.16)*2.56*4.2 -> 58.0608 | J121: 247546.9244
A122: 4660 | B122: 4660 | C122: =(B122/1000-0.16)*2.04*4.5 -> 41.31 | D122: 207224.4945 | E122: =(B122/1000-0.16)*2.3*4.5 -> 46.575 | F122: 46.575 | G122: 217192.07 | H122: 269800.5 | I122: =(B122/1000-0.16)*2.56*4.5 -> 51.84 | J122: 227553.1142
B123: 4960 | C123: =(B123/1000-0.16)*2.04*4.5 -> 44.064 | D123: 217294.9494 | E123: =(B123/1000-0.16)*2.3*4.5 -> 49.68 | F123: 49.68 | G123: 227588.3098 | H123: 282514.24 | I123: =(B123/1000-0.16)*2.56*4.5 -> 55.296 | J123: 238276.0414
B124: 5260 | C124: =(B124/1000-0.16)*2.04*4.5 -> 46.818 | D124: 227365.4043 | E124: =(B124/1000-0.16)*2.3*4.5 -> 52.785 | F124: 52.785 | G124: 237984.5496 | H124: 295226.91 | I124: =(B124/1000-0.16)*2.56*4.5 -> 58.752 | J124: 248998.0662
B125: 5560 | C125: =(B125/1000-0.16)*2.04*4.5 -> 49.572 | D125: 237435.8592 | E125: =(B125/1000-0.16)*2.3*4.5 -> 55.89 | F125: 55.89 | G125: 248380.7895 | H125: 307939.58 | I125: =(B125/1000-0.16)*2.56*4.5 -> 62.208 | J125: 259720.091
A126: 4960 | B126: 4960 | C126: =(B126/1000-0.16)*2.04*4.8 -> 47.0016 | D126: 227849.1183 | E126: =(B126/1000-0.16)*2.3*4.8 -> 52.992 | F126: 52.992 | G126: 238468.2636 | H126: 295800.43 | I126: =(B126/1000-0.16)*2.56*4.8 -> 58.9824 | J126: 249481.7802
B127: 5260 | C127: =(B127/1000-0.16)*2.04*4.8 -> 49.9392 | D127: 238403.2871 | E127: =(B127/1000-0.16)*2.3*4.8 -> 56.304 | F127: 56.304 | G127: 249348.2174 | H127: 309086.62 | I127: =(B127/1000-0.16)*2.56*4.8 -> 62.6688 | J127: 260687.5189
B128: 5560 | C128: =(B128/1000-0.16)*2.04*4.8 -> 52.8768 | D128: 248957.4559 | E128: =(B128/1000-0.16)*2.3*4.8 -> 59.616 | F128: 59.616 | G128: 260228.1711 | H128: 322372.81 | I128: =(B128/1000-0.16)*2.56*4.8 -> 66.3552 | J128: 271893.2576
A129: 5260 | B129: 5260 | C129: =(B129/1000-0.16)*2.04*5.1 -> 53.0604 | D129: 249441.1699 | E129: =(B129/1000-0.16)*2.3*5.1 -> 59.823 | F129: 59.823 | G129: 260711.8851 | H129: 322946.33 | I129: =(B129/1000-0.16)*2.56*5.1 -> 66.5856 | J129: 272376.9716
B130: 5560 | C130: =(B130/1000-0.16)*2.04*5.1 -> 56.1816 | D130: 260479.0526 | E130: =(B130/1000-0.16)*2.3*5.1 -> 63.342 | F130: 63.342 | G130: 272075.5528 | H130: 336807.11 | I130: =(B130/1000-0.16)*2.56*5.1 -> 70.5024 | J130: 284067.3267
A131: 5560 | B131: 5560 | C131: 59.47 | D131: 272000.6493 | E131: 67.07 | F131: 67.07 | G131: 283923.8369 | H131: 351240.34 | I131: 74.65 | J131: 296240.4933
A132: Цены на оборудование ТМ «POLAIR», указанные в настоящем прайс-листе являются рекомендованными и могут отличаться от розничных цен у наших дилеров и региональных представителей.
A135: * - цены на камеры с комплектацией панелей, отличной от стандартных складских позиций
